bitfinex/quotes_BTCUSD_20251219
["timestamp","ask_amount","ask_price","bid_price","bid_amount"]
[1766169899188,0.01723828,87121.0,87104.0,0.01148052]
[1766169899614,0.33308828,87121.0,87104.0,0.01148052]
[1766169899996,0.06887065,87120.0,87103.0,0.00852]
[1766169900420,0.01147855,87119.0,87103.0,0.00852]
[1766169900696,0.01147855,87119.0,87102.0,0.00586852]
[1766169900697,0.01147921,87114.0,87102.0,0.00586852]
[1766169900897,0.01147842,87120.0,87040.0,0.10879424]
[1766169900898,0.01247127,87102.0,87096.0,0.00775]
[1766169901099,0.01247127,87102.0,87075.0,0.01148435]
[1766169901100,0.61845,87092.0,87075.0,0.01148435]
[1766169901342,0.31408263,87088.0,87075.0,0.00010848]
[1766169901552,0.32733277,87087.0,87075.0,0.00010848]
[1766169901759,0.31585,87087.0,87075.0,0.00010848]
[1766169902220,0.31585,87086.0,87075.0,0.00010848]
[1766169902364,0.01148395,87078.0,87075.0,0.00010848]
[1766169902565,0.01148395,87078.0,87062.0,0.00576]
[1766169902566,0.61845,87073.0,87062.0,0.00576]
[1766169902787,0.0001084,87073.0,87062.0,0.00576]
[1766169902988,0.0001084,87073.0,87059.0,0.01724646]
[1766169903149,0.0001084,87073.0,87060.0,0.01148633]
[1766169903351,0.0001084,87073.0,87062.0,0.01148606]
[1766169903589,0.0001084,87073.0,87069.0,0.02294538]
[1766169903590,4e-07,87073.0,87069.0,0.02294538]
[1766169903794,4e-07,87073.0,87059.0,0.00576]
[1766169903951,0.00099,87069.0,87059.0,0.00576]
[1766169904167,4e-07,87073.0,87059.0,0.00576]
[1766169904552,0.01148474,87072.0,87059.0,0.00576]
[1766169904934,0.01148488,87071.0,87059.0,0.00576]
[1766169905291,0.01148501,87070.0,87059.0,0.00576]
[1766169905494,4e-07,87073.0,87060.0,0.05743165]
[1766169905741,4e-07,87073.0,87059.0,0.00576]
[1766169905940,4e-07,87073.0,87059.0,0.01724646]
[1766169906258,4e-07,87073.0,87059.0,0.00576]
[1766169906744,4e-07,87073.0,87060.0,0.01148633]
[1766169906886,4e-07,87073.0,87059.0,0.01724646]
[1766169907421,4e-07,87073.0,87059.0,0.00576]
[1766169908613,4e-07,87073.0,87059.0,0.01724646]
[1766169908811,4e-07,87073.0,87059.0,0.00576]
[1766169909282,4e-07,87073.0,87059.0,0.01724646]
[1766169909528,4e-07,87073.0,87067.0,0.02294538]
[1766169911758,4e-07,87073.0,87067.0,0.03443078]
[1766169911888,0.00576,87080.0,87069.0,0.01148514]
[1766169912073,0.01148277,87087.0,87069.0,0.01148514]
[1766169912074,0.00576,87081.0,87070.0,0.01148501]
[1766169912528,0.00576,87081.0,87070.0,0.06890998]
[1766169912750,0.00576,87081.0,87072.0,0.01148474]
[1766169912959,0.00576,87081.0,87068.0,0.06318596]
[1766169913158,0.01148263,87088.0,87070.0,0.01148501]
[1766169913366,0.61899,87087.0,87070.0,0.01148501]
[1766169913562,0.61899,87087.0,87068.0,0.00576]
[1766169913563,0.63047277,87087.0,87068.0,0.0631862]
[1766169913721,0.63047277,87087.0,87069.0,0.01148514]
[1766169913722,0.3178729,87086.0,87069.0,0.01148514]
[1766169913924,0.30639,87086.0,87072.0,0.01148474]
[1766169914127,0.3126,87087.0,87073.0,0.01148461]
[1766169914466,0.37528351,87091.0,87088.0,0.01148263]
[1766169914467,0.22202,87091.0,87088.0,0.01148263]
[1766169914669,0.00576,87101.0,87088.0,0.06889524]
[1766169914880,0.00576,87100.0,87089.0,0.06889476]
[1766169915467,0.00576,87100.0,87090.0,0.01148237]
[1766169915679,0.00576,87100.0,87090.0,0.12478]
[1766169915885,0.00576,87107.0,87101.0,0.01148092]
[1766169916042,0.00576,87108.0,87102.0,0.06888409]
[1766169916244,0.06887021,87122.0,87102.0,0.06888409]
[1766169916245,0.06380642,87130.0,87112.0,0.01147947]
[1766169916447,0.30639,87128.0,87110.0,0.01147973]
[1766169916668,0.61323,87124.0,87111.0,0.091823]
[1766169916878,0.00576,87123.0,87111.0,0.02294538]
[1766169917109,0.01147868,87118.0,87102.0,0.13043]
[1766169917349,0.001098,87111.0,87102.0,0.13043]
[1766169917823,0.01147881,87117.0,87102.0,0.13043]
[1766169917824,0.01147881,87117.0,87102.0,0.00576]
[1766169918032,0.61323,87116.0,87102.0,0.00576]
[1766169918320,0.06887532,87114.0,87102.0,0.00576]
[1766169918545,0.06887474,87115.0,87102.0,0.00576]
[1766169918706,0.0114796,87111.0,87102.0,0.00576]
[1766169918906,0.00576,87114.0,87088.0,0.12419]
[1766169919105,0.60316,87110.0,87095.0,0.02294538]
[1766169919286,0.06887888,87110.0,87095.0,0.02294538]
[1766169919478,0.60316,87108.0,87095.0,0.02294538]
[1766169919673,0.60316,87110.0,87095.0,0.02294538]
[1766169919873,0.01147973,87110.0,87095.0,0.02294538]
[1766169920109,0.60316,87108.0,87095.0,0.02294538]
[1766169920327,0.60316,87107.0,87095.0,0.02294538]
[1766169921062,0.60316,87107.0,87095.0,0.02870538]
[1766169921421,0.39068339,87107.0,87095.0,0.02870538]
[1766169922230,0.30783,87104.0,87095.0,0.02870538]
[1766169922524,0.068883,87105.0,87095.0,0.02870538]
[1766169922741,0.01724,87108.0,87095.0,0.02870538]
[1766169922742,0.00576,87108.0,87095.0,0.02870538]
[1766169922951,0.30783,87107.0,87095.0,0.02870538]
[1766169923324,0.00576,87108.0,87097.0,0.06888854]
[1766169923529,0.00576,87108.0,87096.0,0.068889]
[1766169923891,0.00576,87108.0,87095.0,0.02870538]
[1766169924194,0.31359,87108.0,87095.0,0.02870538]
[1766169924382,0.01148013,87107.0,87095.0,0.02870538]
[1766169924591,0.06888237,87105.0,87095.0,0.02870538]
[1766169924833,0.01148105,87100.0,87084.0,0.01]
[1766169924952,0.01148105,87100.0,87071.0,0.01]
[1766169924953,0.01148303,87085.0,87071.0,0.01]
[1766169925294,0.30783,87089.0,87072.0,0.00576]
[1766169925295,0.30783,87080.0,87072.0,0.00576]
[1766169925642,0.01148329,87083.0,87072.0,0.00576]
[1766169926044,0.06889995,87083.0,87072.0,0.00586854]
[1766169926247,0.01148329,87083.0,87072.0,0.00586854]
[1766169926558,0.06890218,87080.0,87072.0,0.00586854]
[1766169926883,0.60316,87079.0,87072.0,0.00586854]
[1766169927505,0.61464382,87079.0,87072.0,0.00586854]
[1766169927662,0.60316,87079.0,87072.0,0.00586854]
[1766169928081,0.30783,87078.0,87072.0,0.00586854]
[1766169928276,0.60316,87078.0,87072.0,0.00586854]
[1766169928686,0.60316,87078.0,87072.0,0.00010854]
[1766169929874,0.29533,87078.0,87072.0,0.00010854]
[1766169930281,0.00576,87083.0,87072.0,0.00010854]
[1766169930482,0.00576,87083.0,87072.0,0.01159328]
[1766169930693,0.00576,87083.0,87073.0,0.06890766]
[1766169930885,0.00576,87083.0,87072.0,0.01159328]
[1766169931084,0.30109,87083.0,87072.0,0.00010854]
[1766169931421,0.01148356,87081.0,87072.0,0.00010854]
[1766169931841,0.0574178,87081.0,87072.0,0.00010854]
[1766169932043,0.01148382,87079.0,87072.0,0.00010854]
[1766169932280,0.67206066,87082.0,87072.0,0.00010854]
[1766169932490,0.05742103,87077.0,87072.0,5.4e-07]
[1766169932803,0.36525308,87073.0,87072.0,5.4e-07]
[1766169933079,0.30783,87073.0,87072.0,5.4e-07]
[1766169934229,0.29533,87074.0,87072.0,5.4e-07]
[1766169936212,0.68249259,87074.0,87072.0,5.4e-07]
[1766169936455,0.64443,87073.0,87072.0,5.4e-07]
[1766169937474,0.01148435,87075.0,87072.0,5.4e-07]
[1766169937840,0.06890624,87075.0,87072.0,5.4e-07]
[1766169938070,0.01148435,87075.0,87072.0,5.4e-07]
[1766169938513,0.65591422,87076.0,87072.0,5.4e-07]
[1766169939128,0.00576,87077.0,87072.0,5.4e-07]
[1766169939398,0.64443,87076.0,87072.0,5.4e-07]
[1766169940363,0.31469,87076.0,87072.0,5.4e-07]
[1766169940570,0.0114825,87089.0,87073.0,0.02294538]
[1766169940770,0.32045,87088.0,87074.0,0.01148448]
[1766169941421,0.32045,87088.0,87077.0,0.01148408]
[1766169941598,0.32045,87088.0,87076.0,0.01148422]
[1766169941961,0.32045,87088.0,87077.0,0.01148408]
[1766169942162,0.00576,87088.0,87078.0,0.01148395]
[1766169942365,0.00576,87090.0,87087.0,0.02294538]
[1766169942589,0.00030052,87091.0,87089.0,0.05741196]
[1766169942809,0.00576,87098.0,87091.0,0.06889332]
[1766169943034,0.00576,87098.0,87092.0,0.06889246]
[1766169943269,0.00576,87098.0,87091.0,0.06889332]
[1766169943270,0.31469,87103.0,87091.0,0.06889332]
[1766169943484,0.31469,87103.0,87087.0,0.15254538]
[1766169943485,0.01148105,87100.0,87087.0,0.15254538]
[1766169943683,0.01148105,87100.0,87087.0,0.02294538]
[1766169943855,0.40438578,87101.0,87087.0,0.02294538]
[1766169943856,0.3355,87101.0,87087.0,0.02294538]
[1766169944060,0.00576,87101.0,87088.0,0.05741255]
[1766169944229,0.00576,87101.0,87089.0,0.0114825]
[1766169944431,0.00576,87101.0,87087.0,0.16375815]
[1766169944630,0.00576,87101.0,87088.0,0.01148263]
[1766169944836,0.00576,87101.0,87088.0,0.06889568]
[1766169945105,0.64443,87099.0,87078.0,0.22967711]
[1766169945299,0.64443,87099.0,87069.0,0.12903]
[1766169945300,0.31469,87096.0,87081.0,0.15197538]
[1766169945753,0.32617158,87096.0,87081.0,0.15197538]
[1766169945955,0.01148184,87094.0,87081.0,0.15197538]
[1766169946703,0.05740894,87095.0,87081.0,0.15197538]
[1766169946704,0.06889065,87095.0,87081.0,0.15197538]
[1766169946851,0.01148171,87095.0,87081.0,0.15197538]
[1766169947501,0.06889132,87094.0,87081.0,0.15197538]
[1766169947707,0.01148211,87092.0,87081.0,0.02294538]
[1766169947919,0.32974,87093.0,87072.0,5.4e-07]
[1766169947920,0.01148237,87090.0,87074.0,0.02294538]
[1766169948123,0.64443,87087.0,87075.0,0.00576]
[1766169949983,0.64443,87087.0,87075.0,0.01724435]
[1766169950196,0.64443,87087.0,87075.0,0.00576]
[1766169951608,0.64443,87087.0,87076.0,0.01148422]
[1766169951805,0.31469,87087.0,87075.0,0.00576]
[1766169952241,0.03442525,87109.0,87085.0,0.01148303]
[1766169952451,0.06889042,87095.0,87082.0,0.13782]
[1766169952653,0.01148184,87094.0,87082.0,0.00576]
[1766169952855,0.06889379,87091.0,87079.0,0.00576]
[1766169953053,0.06889446,87090.0,87079.0,0.00576]
[1766169953295,0.6559125,87089.0,87079.0,0.00576]
[1766169953639,0.64443,87089.0,87079.0,0.00576]
[1766169953881,0.6559125,87089.0,87079.0,0.00576]
[1766169954098,0.64443,87089.0,87079.0,0.00576]
[1766169955286,0.05741253,87089.0,87079.0,0.00576]
[1766169955477,0.64443,87088.0,87079.0,0.00576]
[1766169956931,0.31469,87088.0,87079.0,0.00576]
[1766169957133,0.313591,87088.0,87079.0,0.00576]
[1766169957882,0.3355,87093.0,87080.0,0.01148369]
[1766169958079,0.00576,87092.0,87082.0,0.13013]
[1766169958310,0.001099,87080.0,87074.0,0.00576]
[1766169958515,0.3355,87092.0,87076.0,0.0574205]
[1766169958713,0.3355,87092.0,87076.0,0.01148422]
[1766169958920,0.3355,87092.0,87075.0,0.06390599]
[1766169959054,0.65019,87092.0,87076.0,0.01148422]
[1766169959266,0.65019,87092.0,87075.0,0.06390599]
[1766169959462,0.32974,87091.0,87075.0,0.06390599]
[1766169960069,0.32045,87092.0,87074.0,0.00576]
[1766169960070,0.6559125,87089.0,87074.0,0.00576]
[1766169960277,0.64443,87089.0,87074.0,0.00576]
[1766169960723,0.6559125,87089.0,87074.0,0.00576]
[1766169961081,0.01148277,87087.0,87074.0,0.00576]
[1766169961308,0.01148303,87085.0,87074.0,0.00576]
[1766169961477,0.01148316,87084.0,87074.0,0.00576]
[1766169961695,0.06889856,87085.0,87074.0,0.00576]
[1766169961918,0.01148316,87084.0,87074.0,0.00576]
[1766169962569,0.01148329,87083.0,87074.0,0.00576]
[1766169962743,0.06889986,87083.0,87074.0,0.00576]
[1766169962944,0.01148329,87083.0,87074.0,0.00576]
[1766169963150,0.06889903,87084.0,87074.0,0.00576]
[1766169963433,0.01148316,87084.0,87074.0,0.00576]
[1766169963588,0.0114829,87086.0,87074.0,0.00576]
[1766169963785,0.01148316,87084.0,87074.0,0.00576]
[1766169964008,0.06889819,87085.0,87074.0,0.00576]
[1766169964806,0.05741648,87083.0,87074.0,0.00576]
[1766169965007,0.01148369,87080.0,87074.0,0.00576]
[1766169965207,0.91319207,87084.0,87061.0,0.06164058]
[1766169965208,0.01148435,87075.0,87061.0,0.06164058]
[1766169965413,0.79382409,87072.0,87063.0,0.00576]
[1766169965792,0.80530883,87072.0,87063.0,0.00576]
[1766169965999,0.79382409,87072.0,87063.0,0.00576]
[1766169966446,0.80530883,87072.0,87063.0,0.00576]
[1766169967090,0.79382409,87072.0,87063.0,0.00576]
[1766169967486,0.80530883,87072.0,87063.0,0.00576]
[1766169967657,0.0114854,87067.0,87063.0,0.00576]
[1766169967870,0.01148527,87068.0,87063.0,0.00576]
[1766169968081,0.06891017,87070.0,87063.0,0.00576]
[1766169968282,0.01148501,87070.0,87063.0,0.00576]
[1766169968645,0.01148514,87069.0,87062.0,0.0001084]
[1766169968882,0.01148514,87069.0,87063.0,0.00576]
[1766169969197,0.05742795,87066.0,87063.0,0.00576]
[1766169969398,0.06891243,87067.0,87063.0,0.00576]
[1766169969763,0.01148488,87071.0,87063.0,0.00576]
[1766169969962,0.01148501,87070.0,87063.0,0.00576]
[1766169970172,0.01148514,87069.0,87063.0,0.00576]
[1766169970776,0.79382409,87073.0,87063.0,0.00576]
[1766169970985,0.8053087,87073.0,87063.0,0.00576]
[1766169971191,0.86273184,87073.0,87063.0,0.00576]
[1766169971445,1.18258184,87073.0,87063.0,0.00576]
[1766169971653,0.01148474,87072.0,87063.0,0.00576]
[1766169971828,1.18258184,87073.0,87063.0,0.00576]
[1766169972153,0.06890863,87072.0,87063.0,0.00576]
[1766169972456,0.01148488,87071.0,87063.0,0.00576]
[1766169972580,0.06890863,87072.0,87063.0,0.00576]
[1766169972786,0.01148474,87072.0,87063.0,0.00576]
[1766169972980,0.01148488,87071.0,87063.0,0.00576]
[1766169973226,0.06890886,87072.0,87062.0,0.0001084]
[1766169973451,1.18258181,87073.0,87063.0,0.00576]
[1766169973794,1.11367409,87073.0,87063.0,0.00576]
[1766169974009,0.01148527,87068.0,87063.0,0.00576]
[1766169974300,0.01148527,87068.0,87051.0,0.1487]
[1766169974301,0.01148619,87061.0,87051.0,0.1487]
[1766169974502,0.01148619,87061.0,87051.0,0.15446]
[1766169974503,0.69788377,87057.0,87051.0,0.15446]
[1766169974689,0.05743429,87056.0,87055.0,2.23e-06]
[1766169975310,0.64045,87057.0,87055.0,2.23e-06]
[1766169976414,0.3206,87057.0,87055.0,2.23e-06]
[1766169976596,0.0001084,87061.0,87057.0,0.001099]
[1766169976810,0.0001084,87061.0,87055.0,2.23e-06]
[1766169977035,0.65204459,87061.0,87055.0,2.23e-06]
[1766169977267,0.3206,87058.0,87055.0,2.23e-06]
[1766169977465,0.01148699,87055.0,87041.0,0.046]
[1766169977596,0.65193672,87057.0,87045.0,0.00576]
[1766169977807,0.65193672,87057.0,87041.0,0.046]
[1766169977808,0.0574379,87051.0,87041.0,0.01]
[1766169978010,0.0574379,87051.0,87040.0,0.02294538]
[1766169978011,0.01148778,87049.0,87044.0,0.00576]
[1766169978214,0.01148778,87049.0,87027.0,0.1487]
[1766169978215,0.69789468,87041.0,87027.0,0.1487]
[1766169978442,0.79382409,87040.0,87028.0,0.01576]
[1766169978644,0.79382409,87040.0,87028.0,0.00576]
[1766169978845,0.79382409,87040.0,87039.0,0.0002523]
[1766169979108,0.3206,87041.0,87039.0,0.0002523]
[1766169979672,0.01148844,87044.0,87039.0,0.0002523]
[1766169979673,0.06893075,87044.0,87040.0,0.02294538]
[1766169979974,0.06893075,87044.0,87039.0,0.0002523]
[1766169979975,0.0114887,87042.0,87039.0,0.0002523]
[1766169980775,0.01148857,87043.0,87039.0,3e-07]
[1766169980977,0.06893231,87042.0,87039.0,3e-07]
[1766169981394,0.05744419,87041.0,87039.0,3e-07]
[1766169981616,0.31985,87040.0,87039.0,3e-07]
[1766169981822,0.64045,87040.0,87039.0,3e-07]
[1766169982488,0.69789485,87040.0,87039.0,3e-07]
[1766169983318,0.64045,87059.0,87041.0,0.01148883]
[1766169983515,0.0001084,87061.0,87040.0,0.000252]
[1766169983886,0.31985,87051.0,87041.0,0.01148883]
[1766169984081,0.64045,87051.0,87041.0,0.01148883]
[1766169984322,0.01159459,87061.0,87043.0,0.01148857]
[1766169984323,0.64045,87050.0,87043.0,0.01148857]
[1766169984520,0.00576,87049.0,87039.0,0.0114894]
[1766169984725,0.00576,87049.0,87040.0,0.01148897]
[1766169985259,0.3206,87048.0,87039.0,3e-07]
[1766169985647,0.3206,87048.0,87010.0,0.46071229]
[1766169985648,0.31108,87041.0,87025.0,0.05745451]
[1766169985853,0.31108,87040.0,87022.0,0.01149134]
[1766169986030,0.31108,87040.0,87024.0,0.01149108]
[1766169986230,0.31108,87040.0,87025.0,0.01725095]
[1766169986492,0.6282,87040.0,87027.0,0.01149068]
[1766169986741,0.6282,87040.0,87025.0,0.01725095]
[1766169986742,0.31712,87039.0,87026.0,0.01149081]
[1766169986964,0.31712,87039.0,87014.0,0.27584633]
[1766169986965,0.6282,87037.0,87013.0,0.30299]
[1766169987142,0.31712,87027.0,87012.0,0.30299]
[1766169987311,0.32861081,87026.0,87012.0,0.30299]
[1766169987511,0.31712,87025.0,87012.0,0.30299]
[1766169988338,0.31712,87023.0,87012.0,0.00036111]
[1766169988730,0.31712,87023.0,87022.0,0.00053619]
[1766169988932,0.31712,87023.0,87022.0,1.9e-07]
[1766169989160,0.01149068,87027.0,87022.0,1.9e-07]
[1766169989161,0.33437055,87028.0,87022.0,1.9e-07]
[1766169989358,0.01149068,87027.0,87012.0,0.39599111]
[1766169989597,0.32256989,87033.0,87012.0,0.39599111]
[1766169989598,0.01148989,87033.0,87027.0,0.000536]
[1766169989777,0.31712,87031.0,87027.0,0.000536]
[1766169989938,0.38606107,87031.0,87018.0,0.30426]
[1766169990143,0.01149029,87030.0,87018.0,0.30426]
[1766169990383,0.32861015,87031.0,87018.0,0.30426]
[1766169990785,0.31712,87031.0,87018.0,0.30426]
[1766169990986,0.01725029,87030.0,87018.0,0.30426]
[1766169991364,0.00576,87030.0,87018.0,0.30426]
[1766169992409,0.31108,87032.0,87018.0,0.30426]
[1766169992609,0.00576,87031.0,87020.0,0.01149161]
[1766169992838,0.00576,87031.0,87018.0,0.30426]
[1766169993109,0.00576,87031.0,87020.0,0.01149161]
[1766169993303,0.00576,87031.0,87018.0,0.37321117]
[1766169993304,0.00576,87031.0,87019.0,0.05745865]
[1766169993500,0.00576,87030.0,87020.0,0.01149161]
[1766169993722,0.00576,87030.0,87019.0,0.06895039]
[1766169993723,0.00576,87030.0,87019.0,0.01149174]
[1766169993963,0.6282,87032.0,87018.0,0.37321098]
[1766169994259,0.00576,87030.0,87018.0,0.31575187]
[1766169994417,0.00576,87030.0,87020.0,0.32148]
[1766169994742,0.00576,87031.0,87020.0,0.32148]
[1766169994968,0.00576,87031.0,87020.0,0.33297161]
[1766169995140,0.00576,87031.0,87020.0,0.32148]
[1766169995355,0.31108,87032.0,87020.0,0.39042948]
[1766169995544,0.00576,87031.0,87020.0,0.32148]
[1766169997482,0.01725015,87031.0,87020.0,0.32148]
[1766169997683,0.01149029,87030.0,87020.0,0.32148]
[1766169997932,0.00576,87031.0,87020.0,0.32148]
[1766169998515,0.00576,87031.0,87016.0,0.00576]
[1766169998720,0.00576,87031.0,87016.0,0.33873213]
[1766169998909,0.00576,87031.0,87017.0,0.32148]
[1766169999452,0.00576,87031.0,87020.0,0.79431325]
[1766170000087,0.00576,87031.0,87019.0,0.32148]
[1766170000539,0.33318,87031.0,87019.0,0.32148]
[1766170000950,0.00576,87030.0,87019.0,0.32148]
[1766170001171,0.3298,87047.0,87033.0,0.32148]
[1766170001379,0.046,87054.0,87038.0,0.32148]
[1766170001380,0.00576,87050.0,87038.0,0.32148]
[1766170001593,0.00576,87050.0,87038.0,0.33296923]
[1766170001793,0.00576,87050.0,87038.0,0.32148]
[1766170003203,0.01724765,87050.0,87038.0,0.32148]
[1766170003406,0.33318,87050.0,87038.0,0.32148]
[1766170003910,0.41326781,87050.0,87038.0,0.32148]
[1766170004126,0.33318,87050.0,87038.0,0.32148]
[1766170004412,0.34466765,87050.0,87038.0,0.32148]
[1766170004558,0.33318,87050.0,87038.0,0.32148]
[1766170004758,0.33556,87050.0,87038.0,0.32148]
[1766170005359,0.00576,87050.0,87038.0,0.32148]
[1766170005571,0.00576,87050.0,87039.0,0.32148]
[1766170005764,0.32742,87054.0,87039.0,0.3329691]
[1766170006032,0.3298,87056.0,87044.0,0.01148844]
[1766170006222,0.00576,87054.0,87043.0,0.32148]
[1766170006380,0.01148751,87051.0,87043.0,0.32148]
[1766170006583,0.001099,87043.0,87037.0,0.32724]
[1766170006823,0.001099,87043.0,87037.0,0.00576]
[1766170006824,0.00010836,87043.0,87037.0,0.00576]
[1766170007565,0.00010836,87043.0,87026.0,0.06164058]
[1766170007566,0.001099,87037.0,87025.0,0.32148]
[1766170007738,0.32742,87034.0,87026.0,0.00576]
[1766170008518,0.3298,87035.0,87026.0,0.00576]
[1766170008709,0.32742,87039.0,87026.0,0.00576]
[1766170008901,0.34139693,87043.0,87026.0,0.00576]
[1766170008902,0.00010836,87043.0,87031.0,0.0574507]
[1766170009107,0.00010836,87043.0,87032.0,0.02294538]
[1766170009315,0.00010836,87043.0,87034.0,0.05744815]
[1766170009316,0.00576,87042.0,87034.0,0.05744815]
[1766170009732,0.00576,87042.0,87034.0,0.01148976]
[1766170009935,0.00010836,87043.0,87034.0,0.33872976]
[1766170010230,0.00010836,87043.0,87035.0,0.05744804]
[1766170010434,0.00576,87049.0,87036.0,0.39041695]
[1766170010635,0.00576,87049.0,87036.0,0.39077786]
[1766170010886,0.00576,87049.0,87037.0,0.0689361]
[1766170011090,0.00576,87049.0,87036.0,0.39077786]
[1766170011091,0.3298,87058.0,87049.0,0.01148778]
[1766170011253,0.00576,87054.0,87042.0,0.32148]
[1766170011463,0.33318,87054.0,87042.0,0.32148]
[1766170012896,0.33318,87054.0,87042.0,0.3329687]
[1766170013217,0.33318,87054.0,87042.0,0.32148]
[1766170013432,0.32742,87054.0,87042.0,0.32148]
[1766170013790,0.32742,87054.0,87042.0,0.3329687]
[1766170013991,0.32742,87054.0,87043.0,0.01148857]
[1766170014185,0.32742,87054.0,87042.0,0.3329687]
[1766170014377,0.32742,87054.0,87042.0,0.32148]
[1766170014727,0.32742,87054.0,87042.0,0.3329687]
[1766170015041,0.38723571,87054.0,87041.0,0.00576]
[1766170015246,0.32742,87052.0,87041.0,0.00576]
[1766170015385,0.34128725,87053.0,87041.0,0.00576]
[1766170015599,0.32742,87052.0,87041.0,0.00576]
[1766170016471,0.16629532,87052.0,87041.0,0.00576]
[1766170017910,0.3298,87053.0,87041.0,0.00576]
[1766170018361,0.3298,87053.0,87041.0,0.01724883]
[1766170018507,0.3298,87053.0,87041.0,0.00576]
[1766170018711,0.32742,87052.0,87041.0,0.00576]
[1766170020127,0.01148751,87051.0,87026.0,0.1487]
[1766170020328,0.3298,87047.0,87033.0,0.02294538]
[1766170020563,0.32742,87045.0,87033.0,0.02294538]
[1766170021531,0.16912302,87045.0,87033.0,0.02294538]
[1766170021930,0.33556,87046.0,87033.0,0.02870538]
[1766170021931,0.3298,87046.0,87033.0,0.02870538]
[1766170022130,0.01148659,87058.0,87045.0,0.001099]
[1766170022131,0.00576,87050.0,87045.0,0.001099]
[1766170022320,0.00576,87050.0,87047.0,0.02294538]
[1766170022974,0.00576006,87049.0,87047.0,0.02294538]
[1766170023196,0.00576006,87049.0,87040.0,0.01724897]
[1766170023197,0.3298,87048.0,87040.0,0.00576]
[1766170023391,0.3298,87048.0,87033.0,0.03443527]
[1766170023392,0.3298,87045.0,87038.0,0.00576]
[1766170024218,0.34835844,87044.0,87038.0,0.00576]
[1766170024430,0.66627,87043.0,87038.0,0.00576]
[1766170024791,0.3294,87043.0,87038.0,0.00576]
[1766170024991,0.01148817,87046.0,87034.0,0.01]
[1766170025230,0.23551453,87050.0,87036.0,0.01]
[1766170025231,0.33687,87048.0,87036.0,0.01]
[1766170025434,0.00576006,87047.0,87036.0,0.01]
[1766170025638,0.33687,87046.0,87036.0,0.01]
[1766170026463,0.33687,87046.0,87034.0,0.01]
[1766170027088,0.33687,87044.0,87034.0,0.01]
[1766170027286,0.66627,87044.0,87034.0,0.01]
[1766170027500,0.66627,87044.0,87033.0,0.01]
[1766170028538,0.66627,87043.0,87033.0,0.01]
[1766170028749,0.0114887,87042.0,87033.0,0.01]
[1766170028949,0.07469216,87043.0,87032.0,0.02294538]
[1766170029147,0.66627,87042.0,87032.0,0.02294538]
[1766170029690,0.3294,87041.0,87032.0,0.02294538]
[1766170030046,0.01148883,87041.0,87030.0,0.00576]
[1766170030264,0.66627,87038.0,87030.0,0.00576]
[1766170030950,0.00576006,87037.0,87030.0,0.00576]
[1766170032905,0.67203006,87037.0,87030.0,0.00576]
[1766170033806,0.00576006,87037.0,87030.0,0.00576]
[1766170036122,0.67203006,87037.0,87030.0,0.00576]
[1766170036324,0.33516006,87037.0,87030.0,0.00576]
[1766170037010,0.00576006,87037.0,87030.0,0.00576]
[1766170040676,0.00576006,87037.0,87031.0,0.66965]
[1766170041237,0.34620194,87051.0,87036.0,0.01148949]
[1766170041368,0.00036194,87051.0,87044.0,0.69259538]
[1766170042010,0.00036194,87051.0,87044.0,0.35281538]
[1766170042377,0.01184945,87051.0,87041.0,0.02294538]
[1766170042527,0.66376194,87051.0,87041.0,0.02294538]
[1766170042847,0.6634,87050.0,87041.0,0.02294538]
[1766170043155,0.34584,87050.0,87041.0,0.02294538]
[1766170043831,0.00036194,87051.0,87041.0,0.02294538]
[1766170044035,1.94e-06,87051.0,87048.0,0.66965]
[1766170044217,1.94e-06,87051.0,87048.0,0.68113791]
[1766170044415,1.94e-06,87051.0,87048.0,0.66965]
[1766170045391,1.94e-06,87051.0,87048.0,0.32987]
[1766170045560,1.94e-06,87051.0,87045.0,0.00576]
[1766170045561,0.001099,87048.0,87045.0,0.00576]
[1766170045929,1.94e-06,87051.0,87045.0,0.00576]
[1766170046543,0.01148945,87051.0,87045.0,0.00576]
[1766170046770,1.94e-06,87051.0,87045.0,0.00576]
[1766170047197,1.94e-06,87051.0,87045.0,0.004661]
[1766170047394,0.01148945,87051.0,87045.0,0.004661]
[1766170047936,1.94e-06,87051.0,87045.0,0.004661]
[1766170048080,1.94e-06,87051.0,87045.0,1e-06]
[1766170048284,0.66340194,87051.0,87045.0,1e-06]
[1766170048504,1.94e-06,87051.0,87045.0,1e-06]
[1766170049076,1.94e-06,87051.0,87046.0,0.02294538]
[1766170049925,1.94e-06,87051.0,87046.0,0.69259538]
[1766170050122,1.94e-06,87051.0,87049.0,0.33978]
[1766170051924,1.94e-06,87051.0,87049.0,0.66965]
[1766170052140,1.94e-06,87051.0,87049.0,0.32987]
[1766170052449,1.94e-06,87051.0,87047.0,0.01]
[1766170053002,1.94e-06,87051.0,87039.0,0.06164058]
[1766170053003,0.72773085,87050.0,87039.0,0.06164058]
[1766170053360,0.01148945,87051.0,87041.0,0.02294538]
[1766170053666,0.6634,87047.0,87041.0,0.02294538]
[1766170054646,0.72084066,87047.0,87040.0,0.00576]
[1766170054842,0.65580804,87047.0,87040.0,0.00576]
[1766170055265,0.06892677,87049.0,87036.0,0.00576]
[1766170055266,0.64432,87046.0,87036.0,0.00576]
[1766170055845,0.65580817,87046.0,87036.0,0.00576]
[1766170056469,0.64432,87046.0,87036.0,0.00576]
[1766170059203,0.2009779,87130.0,87046.0,0.001099]
[1766170059204,0.33444,87058.0,87046.0,0.001099]
[1766170059414,0.00576,87052.0,87046.0,0.001099]
[1766170059823,0.65008,87052.0,87041.0,0.00576]
[1766170060024,0.3402,87052.0,87042.0,0.0114887]
[1766170060244,0.3402,87052.0,87041.0,0.35241883]
[1766170060478,0.33444,87052.0,87041.0,0.409863]
[1766170060693,0.33444,87052.0,87041.0,0.35241883]
[1766170060898,0.33444,87052.0,87041.0,0.34093]
[1766170061111,0.64432,87052.0,87041.0,0.00576]
[1766170061320,0.05743725,87052.0,87041.0,0.00576]
[1766170061529,0.64432,87050.0,87041.0,0.00576]
[1766170061974,0.33444,87050.0,87041.0,0.00576]
[1766170063504,0.33444,87050.0,87045.0,0.02294538]
[1766170064998,0.05743222,87060.0,87046.0,0.00576]
[1766170065225,0.03451229,87073.0,87046.0,0.00576]
[1766170065226,0.03090646,87094.0,87068.0,0.01148527]